fUSD/lending_fUSD_20250417
["ID","MTS","AMOUNT","RATE_DAILY","PERIOD"]
[358251934,1744876316557,-946.46,0.00052054,120]
[358251935,1744876316567,-500.0,0.00052054,120]
[358251936,1744876316577,-500.0,0.00052054,120]
[358251937,1744876316587,-500.0,0.00052054,120]
[358251938,1744876316597,-1007.48,0.00052054,120]
[358251939,1744876316607,-559.91,0.00052054,120]
[358251940,1744876316617,-420.3,0.00052054,120]
[358251941,1744876316627,-1373.68,0.00052054,120]
[358251942,1744876316637,-940.05,0.00052054,120]
[358251943,1744876316648,-500.0,0.00052054,120]
[358251944,1744876316657,-500.0,0.00052054,120]
[358251945,1744876316668,-1203.26,0.00052054,120]
[358251946,1744876316678,-825.67,0.00052054,120]
[358251947,1744876316687,-500.0,0.00052054,120]
[358251948,1744876316697,-1575.92,0.00052054,120]
[358251949,1744876316706,-1004.58,0.00052054,120]
[358251950,1744876316715,-1167.01,0.00052054,120]
[358251951,1744876316725,-500.0,0.00052054,120]
[358251952,1744876316738,-701.01,0.00052054,120]
[358251953,1744876316748,-1323.83,0.00052054,120]
[358251954,1744876316758,-803.28,0.00052054,30]
[358251955,1744876316768,-507.89,0.00052054,120]
[358251956,1744876316777,-1748.54,0.00052054,120]
[358251957,1744876316786,-3514.34,0.00052054,120]
[358251958,1744876316795,-500.0,0.00052054,120]
[358251959,1744876316805,-500.0,0.00052054,120]
[358251960,1744876316814,-1749.19,0.00052054,120]
[358251961,1744876316823,-1134.15,0.00052054,120]
[358251962,1744876316833,-500.0,0.00052054,120]
[358251963,1744876316842,-1115.45,0.00052054,120]
[358251964,1744876316852,-1157.9,0.00052054,120]
[358251965,1744876316861,-1269.95,0.00052054,120]
[358251966,1744876316870,-1020.0,0.00052054,120]
[358251967,1744876316879,-500.0,0.00052054,120]
[358251968,1744876316890,-500.0,0.00052054,120]
[358251969,1744876316900,-1129.1,0.00052054,120]
[358251970,1744876316909,-568.86,0.00052054,120]
[358251971,1744876316919,-1581.24,0.00052054,120]
[358251972,1744876316929,-766.52,0.00052054,120]
[358251973,1744876316939,-500.0,0.00052054,120]
[358251974,1744876316948,-683.59,0.00052054,120]
[358251975,1744876316958,-500.0,0.00052054,120]
[358251976,1744876316968,-605.07,0.00052054,120]
[358251977,1744876316977,-1943.48,0.00052054,120]
[358251978,1744876316987,-500.0,0.00052054,120]
[358251979,1744876316997,-945.69,0.00052054,120]
[358251980,1744876317007,-1873.76,0.00052054,120]
[358251981,1744876317017,-500.0,0.00052054,120]
[358251982,1744876317027,-500.0,0.00052054,120]
[358251983,1744876317036,-566.9,0.00052054,120]
[358251984,1744876317046,-536.75,0.00052054,120]
[358251985,1744876317056,-312.5,0.00052054,120]
[358251986,1744876317067,-500.0,0.00052054,30]
[358251987,1744876317078,-1511.21,0.00052054,120]
[358251988,1744876317088,-2015.84,0.00052054,120]
[358251989,1744876317098,-500.0,0.00052054,120]
[358251990,1744876317108,-576.1,0.00052054,120]
[358251991,1744876317120,-500.0,0.00052054,120]
[358251992,1744876317131,-503.02,0.00052054,120]
[358251993,1744876317141,-1485.3,0.00052054,120]
[358251994,1744876317151,-616.82,0.00052054,120]
[358251995,1744876317160,-1889.42,0.00052054,120]
[358251996,1744876317171,-500.0,0.00052054,120]
[358251997,1744876317180,-521.54,0.00052054,120]
[358251998,1744876317191,-500.0,0.00052054,120]
[358251999,1744876317203,-228.89559733,0.00052054,120]
[358252000,1744876317215,-1626.25,0.00052054,120]
[358252001,1744876317225,-469.50569493,0.00052054,120]
[358252002,1744876317236,-1339.26,0.00052054,120]
[358252003,1744876317246,-1497.28,0.00052054,120]
[358252004,1744876317256,-1832.25,0.00052054,120]
[358252005,1744876317265,-630.84,0.00052054,120]
[358252006,1744876317276,-500.0,0.00052054,120]
[358252007,1744876317286,-615.64,0.00052054,120]
[358252008,1744876317296,-500.0,0.00052054,120]
[358252009,1744876317306,-692.24,0.00052054,120]
[358252010,1744876317315,-500.0,0.00052054,120]
[358252011,1744876317325,-500.0,0.00052054,120]
[358252012,1744876317335,-1231.98,0.00052054,120]
[358252013,1744876317345,-1043.32,0.00052054,120]
[358252014,1744876317355,-1684.61,0.00052054,120]
[358252015,1744876317367,-500.0,0.00052054,120]
[358252016,1744876317377,-668.2,0.00052054,120]
[358252017,1744876317387,-500.0,0.00052054,120]
[358252018,1744876317396,-500.0,0.00052054,120]
[358252019,1744876317406,-500.0,0.00052054,120]
[358252020,1744876317416,-500.0,0.00052054,120]
[358252021,1744876317425,-500.0,0.00052054,120]
[358252022,1744876317435,-500.0,0.00052054,120]
[358252023,1744876317444,-864.39,0.00052054,120]
[358252024,1744876317454,-626.02,0.00052054,120]
[358252025,1744876317464,-1072.56,0.00052054,120]
[358252026,1744876317474,-1764.88,0.00052054,120]
[358252027,1744876317484,-500.0,0.00052054,120]
[358252028,1744876317494,-5640.62,0.00052054,120]
[358252029,1744876317503,-917.98,0.00052054,120]
[358252030,1744876317512,-1475.44,0.00052054,120]
[358252031,1744876317522,-500.0,0.00052054,120]
[358252032,1744876317531,-1612.75,0.00052054,120]
[358252033,1744876317541,-500.0,0.00052054,120]
[358252034,1744876317551,-500.0,0.00052054,120]
[358252035,1744876317560,-2211.01,0.00052054,120]
[358252036,1744876317570,-791.97,0.00052054,14]
[358252037,1744876317579,-1177.02,0.00052054,120]
[358252038,1744876317589,-1468.16,0.00052054,120]
[358252039,1744876317599,-1829.33,0.00052054,120]
[358252040,1744876317609,-500.0,0.00052054,120]
[358252041,1744876317618,-520.62,0.00052054,120]
[358252042,1744876317627,-500.0,0.00052054,120]
[358252043,1744876317637,-637.47854696,0.00052054,120]
[358252044,1744876317647,-793.46,0.00052054,120]
[358252045,1744876317656,-500.0,0.00052054,120]
[358252046,1744876317666,-500.0,0.00052054,120]
[358252047,1744876317676,-366.6,0.00052054,120]
[358252048,1744876317686,-1128.03,0.00052054,120]
[358252049,1744876317696,-527.45,0.00052054,120]
[358252050,1744876317706,-500.0,0.00052054,120]
[358252051,1744876317782,-500.0,0.00052054,120]
[358252052,1744876317792,-500.0,0.00052054,120]
[358252053,1744876317802,-10543.98,0.00052054,120]
[358252054,1744876317812,-10543.98,0.00052054,120]
[358252055,1744876317822,-674.54,0.00052054,120]
[358252056,1744876317831,-504.45,0.00052054,120]
[358252057,1744876317841,-500.0,0.00052054,120]
[358252058,1744876317851,-500.0,0.00052054,120]
[358252059,1744876317860,-586.57,0.00052054,120]
[358252060,1744876317870,-500.0,0.00052054,120]
[358252061,1744876317879,-500.0,0.00052054,120]
[358252062,1744876317889,-204.03763446,0.00052054,120]
[358252063,1744876317899,-500.0,0.00052054,120]
[358252064,1744876317908,-1036.71,0.00052054,120]
[358252065,1744876317921,-500.0,0.00052054,120]
[358252066,1744876317933,-909.38,0.00052054,120]
[358252067,1744876317944,-500.0,0.00052054,120]
[358252068,1744876317954,-635.2327173,0.00052054,120]
[358252069,1744876317964,-500.0,0.00052054,120]
[358252070,1744876317973,-1171.86,0.00052054,120]
[358252071,1744876317983,-2181.26,0.00052054,120]
[358252072,1744876317993,-500.0,0.00052054,120]
[358252073,1744876318003,-675.13,0.00052054,120]
[358252074,1744876318013,-500.0,0.00052054,120]
[358252075,1744876318023,-500.0,0.00052054,120]
[358252076,1744876318032,-500.0,0.00052054,120]
[358252077,1744876318042,-391.01390205,0.00052054,120]
[358252078,1744876318051,-500.0,0.00052054,120]
[358252079,1744876318061,-1081.53,0.00052054,120]
[358252080,1744876318071,-1595.7,0.00052054,120]
[358252081,1744876318081,-500.0,0.00052054,120]
[358252082,1744876318090,-1097.37,0.00052054,120]
[358252083,1744876318099,-500.0,0.00052054,120]
[358252084,1744876318109,-1093.79,0.00052054,120]
[358252085,1744876318119,-500.0,0.00052054,120]
[358252086,1744876318133,-722.02,0.00052054,120]
[358252087,1744876318144,-978.59,0.00052054,120]
[358252088,1744876318154,-500.0,0.00052054,120]
[358252089,1744876318163,-1836.63,0.00052054,120]
[358252090,1744876318174,-500.0,0.00052054,120]
[358252091,1744876318183,-614.33,0.00052054,120]
[358252092,1744876318192,-1012.01,0.00052054,120]
[358252093,1744876318202,-2529.41,0.00052054,120]
[358252094,1744876318213,-1942.54,0.00052054,120]
[358252095,1744876318223,-500.0,0.00052054,120]
[358252096,1744876318233,-2464.72,0.00052054,120]
[358252097,1744876318242,-1110.2,0.00052054,120]
[358252098,1744876318252,-771.84,0.00052054,120]
[358252099,1744876318262,-1931.2,0.00052054,120]
[358252100,1744876318271,-500.0,0.00052054,120]
[358252101,1744876318281,-500.0,0.00052054,120]
[358252102,1744876318291,-676.22,0.00052054,120]
[358252103,1744876318302,-601.64,0.00052054,120]
[358252104,1744876318312,-500.0,0.00052054,120]
[358252105,1744876318322,-2027.54,0.00052054,120]
[358252106,1744876318332,-1731.61,0.00052054,120]
[358252107,1744876318342,-500.0,0.00052054,120]
[358252108,1744876318351,-506.42,0.00052054,120]
[358252109,1744876318362,-560.74,0.00052054,120]
[358252110,1744876318373,-500.0,0.00052054,120]
[358252111,1744876318383,-1571.6,0.00052054,120]
[358252112,1744876318393,-575.17,0.00052054,120]
[358252113,1744876318403,-500.0,0.00052054,120]
[358252114,1744876318413,-500.0,0.00052054,120]
[358252115,1744876318423,-1491.97,0.00052054,120]
[358252116,1744876318433,-500.0,0.00052054,120]
[358252117,1744876318444,-1061.2,0.00052054,120]
[358252118,1744876318454,-500.0,0.00052054,120]
[358252119,1744876318464,-500.0,0.00052054,120]
[358252120,1744876318474,-559.87,0.00052054,120]
[358252121,1744876318484,-1783.03,0.00052054,120]
[358252122,1744876318494,-500.0,0.00052054,120]
[358252123,1744876318505,-500.0,0.00052054,120]
[358252124,1744876318515,-500.0,0.00052054,120]
[358252125,1744876318524,-500.0,0.00052054,120]
[358252126,1744876318534,-1489.6,0.00052054,120]
[358252127,1744876318543,-3035.42,0.00052054,120]
[358252128,1744876318553,-2015.28,0.00052054,120]
[358252129,1744876318563,-1985.57,0.00052054,120]
[358252130,1744876318573,-835.38,0.00052054,120]
[358252131,1744876318583,-843.17,0.00052054,120]
[358252132,1744876318592,-728.48,0.00052054,120]
[358252133,1744876318603,-2125.57,0.00052054,120]
[358252134,1744876318613,-506.65,0.00052054,120]
[358252135,1744876318623,-517.91,0.00052054,120]
[358252136,1744876318634,-531.0,0.00052054,120]
[358252137,1744876318644,-1110.06,0.00052054,120]
[358252138,1744876318654,-500.0,0.00052054,120]
[358252139,1744876318664,-3548.1,0.00052054,120]
[358252140,1744876318674,-887.03,0.00052054,120]
[358252141,1744876318689,-469.04090978,0.00052054,120]
[358252142,1744876318700,-1073.22,0.00052054,120]
[358252143,1744876318710,-500.0,0.00052054,120]
[358252144,1744876318721,-178.06221322,0.00052054,120]
[358252145,1744876318732,-500.0,0.00052054,120]
[358252146,1744876318741,-500.0,0.00052054,120]
[358252147,1744876318751,-500.0,0.00052054,120]
[358252148,1744876318761,-500.0,0.00052054,120]
[358252149,1744876318770,-1152.77,0.00052054,120]
[358252150,1744876318780,-500.0,0.00052054,120]
[358252151,1744876318789,-2168.54,0.00052054,120]
[358252152,1744876318799,-568.46,0.00052054,120]
[358252153,1744876318808,-500.0,0.00052054,120]
[358252154,1744876318818,-500.0,0.00052054,120]
[358252155,1744876318828,-500.0,0.00052054,120]
[358252156,1744876318838,-888.6,0.00052054,120]
[358252157,1744876318847,-500.0,0.00052054,120]
[358252158,1744876318857,-1780.21,0.00052054,120]
[358252159,1744876318867,-979.12,0.00052054,120]
[358252160,1744876318876,-2832.46,0.00052054,120]
[358252161,1744876318885,-1076.61,0.00052054,120]
[358252162,1744876318895,-518.93,0.00052054,120]
[358252163,1744876318904,-500.0,0.00052054,120]
[358252164,1744876318914,-889.68,0.00052054,120]
[358252165,1744876318924,-500.0,0.00052054,120]
[358252166,1744876318933,-3566.71,0.00052054,120]
[358252167,1744876318943,-1124.76,0.00052054,120]
[358252168,1744876318953,-1217.56,0.00052054,120]
[358252169,1744876318963,-1092.56,0.00052054,120]
[358252170,1744876318973,-1639.19,0.00052054,120]
[358252171,1744876318984,-500.0,0.00052054,120]
[358252172,1744876318994,-972.81,0.00052054,118]
[358252173,1744876319004,-1788.27,0.00052054,120]
[358252174,1744876319014,-861.37,0.00052054,120]
[358252175,1744876319023,-822.54,0.00052054,120]
[358252176,1744876319033,-500.0,0.00052054,120]
[358252177,1744876319043,-702.66,0.00052054,120]
[358252178,1744876319052,-1270.01,0.00052054,120]
[358252179,1744876319062,-500.0,0.00052054,120]
[358252180,1744876319071,-909.8,0.00052054,120]
[358252181,1744876319081,-593.0,0.00052054,120]
[358252182,1744876319090,-753.51,0.00052054,120]
[358252183,1744876319100,-516.56,0.00052054,120]
[358252184,1744876319110,-973.47,0.00052054,120]
[358252185,1744876319121,-500.0,0.00052054,120]
[358252186,1744876319132,-2790.52,0.00052054,120]
[358252187,1744876319141,-500.0,0.00052054,120]
[358252188,1744876319151,-500.0,0.00052054,120]
[358252189,1744876319160,-555.93,0.00052054,120]
[358252190,1744876319170,-554.36,0.00052054,120]
[358252191,1744876319180,-1344.71,0.00052054,120]
[358252192,1744876319189,-1633.9,0.00052054,120]
[358252193,1744876319199,-1508.99,0.00052054,120]
[358252194,1744876319210,-246.11238702,0.00052054,120]
[358252195,1744876319220,-500.0,0.00052054,120]
[358252196,1744876319230,-801.2,0.00052054,120]
[358252197,1744876319239,-2484.07,0.00052054,120]
[358252198,1744876319248,-500.0,0.00052054,120]
[358252199,1744876319258,-500.0,0.00052054,120]
[358252200,1744876319267,-3739.63,0.00052054,120]
[358252201,1744876319277,-605.98,0.00052054,120]
[358252202,1744876319286,-185.31973934,0.00052054,120]
[358252203,1744876319295,-3141.6,0.00052054,120]
[358252204,1744876319305,-536.48,0.00052054,120]
[358252205,1744876319315,-1042.98,0.00052054,120]
[358252206,1744876319325,-1821.22,0.00052054,120]
[358252207,1744876319334,-500.0,0.00052054,120]
[358252208,1744876319344,-1155.97,0.00052054,120]
[358252209,1744876319354,-500.0,0.00052054,120]
[358252210,1744876319366,-608.82,0.00052054,120]
[358252211,1744876319375,-1542.01,0.00052054,120]
[358252212,1744876319387,-500.0,0.00052054,120]
[358252213,1744876319398,-608.54,0.00052054,120]
[358252214,1744876319408,-231.9383753,0.00052054,120]
[358252215,1744876319418,-1023.29,0.00052054,120]
[358252216,1744876319428,-505.15,0.00052054,120]
[358252217,1744876319437,-512.28,0.00052054,120]
[358252218,1744876319447,-996.12,0.00052054,120]
[358252219,1744876319456,-500.0,0.00052054,120]
[358252220,1744876319467,-821.03,0.00052054,120]
[358252221,1744876319476,-500.0,0.00052054,120]
[358252222,1744876319486,-533.51,0.00052054,120]
[358252223,1744876319496,-1488.96,0.00052054,120]
[358252224,1744876319505,-2888.97,0.00052054,120]
[358252225,1744876319515,-500.0,0.00052054,120]
[358252226,1744876319524,-605.83,0.00052054,120]
[358252227,1744876319534,-570.18,0.00052054,120]
[358252228,1744876319544,-722.72,0.00052054,120]
[358252229,1744876319554,-754.15,0.00052054,120]
[358252230,1744876319563,-1214.83,0.00052054,120]
[358252231,1744876319573,-500.0,0.00052054,120]
[358252232,1744876319583,-500.0,0.00052054,2]
[358252233,1744876319592,-1002.18,0.00052054,8]
[358252234,1744876319602,-470.52316273,0.00052054,120]
[358252235,1744876319612,-1218.38,0.00052054,120]
[358252236,1744876319621,-1097.9,0.00052054,120]
[358252237,1744876319630,-500.0,0.00052054,120]
[358252238,1744876319640,-1622.19,0.00052054,120]
[358252239,1744876319649,-7361.74,0.00052054,120]
[358252240,1744876319658,-779.5,0.00052054,120]
[358252241,1744876319666,-2365.86,0.00052054,120]
[358252242,1744876319674,-150.0,0.00052068,30]
[358252243,1744876319682,-300.0,0.00052069,120]
[358252244,1744876319690,-150.0,0.00052094,30]
[358252245,1744876319698,-276.86,0.00052095,120]
[358252246,1744876319707,-150.435,0.00052095,120]
[358252247,1744876319715,-186.56,0.00052095,120]
[358252248,1744876319724,-151.24,0.00052095,120]
[358252249,1744876319733,-150.0,0.00052095,120]
[358252250,1744876319743,-250.0,0.00052095,120]
[358252251,1744876319752,-181.995,0.00052095,120]
[358252252,1744876319761,-172.259,0.00052095,120]
[358252253,1744876319770,-257.905,0.00052095,120]
[358252254,1744876319779,-2110.0,0.00052102,30]
[358252255,1744876319789,-150.0,0.00052138,30]
[358252256,1744876319799,-150.0,0.00052152,7]
[358252257,1744876319809,-150.0,0.00052255,7]
[358252258,1744876319818,-150.0,0.00052256,7]
[358252259,1744876319828,-1000.00000099,0.00052263,120]
[358252260,1744876319837,-500.0,0.00052273,120]
[358252261,1744876319847,-500.0,0.00052273,120]
[358252262,1744876319856,-500.0,0.00052273,120]
[358252263,1744876319866,-500.0,0.00052273,120]
[358252264,1744876319876,-500.0,0.00052273,120]
[358252265,1744876319886,-500.0,0.00052273,120]
[358252266,1744876319895,-500.0,0.00052273,120]
[358252267,1744876319905,-500.0,0.00052273,120]
[358252268,1744876319914,-500.0,0.00052273,120]
[358252269,1744876319924,-500.0,0.00052273,120]
[358252270,1744876319933,-500.0,0.00052273,120]
[358252271,1744876319943,-150.0,0.000523,120]
[358252272,1744876319954,-1401.9672,0.000523,30]
[358252273,1744876319964,-786.152,0.000523,30]
[358252274,1744876319974,-549.24835,0.0005232,93]
[358252275,1744876319983,-282.29477382,0.00052328,30]
[358252276,1744876319993,-500.0,0.00052328,120]
[358252277,1744876320003,-591.156374,0.00052328,120]
[358252278,1744876320014,-227.981738,0.00052328,120]
[358252279,1744876320024,-500.0,0.00052328,120]
[358252280,1744876320034,-1611.74,0.00052328,120]
[358252281,1744876320044,-772.09,0.00052328,120]
[358252282,1744876320054,-3077.05,0.00052328,120]
[358252283,1744876320063,-500.0,0.00052328,120]
[358252284,1744876320073,-500.0,0.00052328,120]
[358252285,1744876320082,-516.0,0.00052328,120]
[358252286,1744876320091,-825.74,0.00052328,120]
[358252287,1744876320101,-500.0,0.00052328,120]
[358252288,1744876320111,-500.0,0.00052328,120]
[358252289,1744876320122,-1329.86,0.00052328,120]
[358252290,1744876320132,-1041.46,0.00052328,120]
[358252291,1744876320142,-500.0,0.00052328,120]
[358252292,1744876320151,-500.0,0.00052328,120]
[358252293,1744876320162,-995.71,0.00052328,120]
[358252294,1744876320172,-500.0,0.00052328,120]
[358252295,1744876320182,-561.46,0.00052328,30]
[358252296,1744876320192,-889.17,0.00052328,120]
[358252297,1744876320204,-1598.19,0.00052328,120]
[358252298,1744876320215,-500.0,0.00052328,120]
[358252299,1744876320224,-2447.13,0.00052328,120]
[358252300,1744876320234,-934.81,0.00052328,120]
[358252301,1744876320244,-500.0,0.00052328,120]
[358252302,1744876320253,-558.88,0.00052328,120]
[358252303,1744876320263,-500.0,0.00052328,120]
[358252304,1744876320273,-500.0,0.00052328,120]
[358252305,1744876320283,-500.0,0.00052328,120]
[358252306,1744876320293,-120995.21,0.00052328,7]
[358252307,1744876320303,-500.0,0.00052328,120]
[358252308,1744876320313,-500.0,0.00052328,120]
[358252309,1744876320322,-1597.3,0.00052328,120]
[358252310,1744876320332,-724.18,0.00052328,2]
[358252311,1744876320342,-414.1407603,0.00052328,120]
[358252312,1744876320352,-500.0,0.00052328,120]
[358252313,1744876320362,-1073.23,0.00052328,120]
[358252314,1744876320372,-852.63,0.00052328,120]
[358252315,1744876320382,-500.0,0.00052328,120]
[358252316,1744876320391,-9618.82,0.00052328,2]
[358252317,1744876320401,-500.0,0.00052328,120]
[358252318,1744876320410,-287.87544736,0.00052328,120]
[358252319,1744876320420,-748.68,0.00052328,120]
[358252320,1744876320430,-507.6,0.00052328,120]
[358252321,1744876320441,-4167.06,0.00052328,120]
[358252322,1744876320451,-547.49,0.00052328,120]
[358252323,1744876320460,-762.47,0.00052328,120]
[358252324,1744876320470,-1761.11,0.00052328,120]
[358252325,1744876320480,-500.0,0.00052328,120]
[358252326,1744876320489,-603.07,0.00052328,120]
[358252327,1744876320499,-677.96,0.00052328,120]
[358252328,1744876320508,-895.97,0.00052328,120]
[358252329,1744876320518,-2042.51,0.00052328,120]
[358252330,1744876320528,-2095.32,0.00052328,120]
[358252331,1744876320538,-500.0,0.00052328,120]
[358252332,1744876320548,-783.72,0.00052328,120]
[358252333,1744876320558,-568.82,0.00052328,120]
[358252334,1744876320568,-670.78,0.00052328,120]
[358252335,1744876320578,-1727.55,0.00052328,120]
[358252336,1744876320587,-500.0,0.00052328,120]
[358252337,1744876320597,-500.0,0.00052328,120]
[358252338,1744876320607,-1214.17,0.00052328,120]
[358252339,1744876320617,-500.0,0.00052328,120]
[358252340,1744876320627,-563.29,0.00052328,120]
[358252341,1744876320636,-765.17,0.00052328,120]
[358252342,1744876320646,-781.9,0.00052328,120]
[358252343,1744876320655,-2735.7,0.00052328,120]
[358252344,1744876320665,-2102.94,0.00052328,120]
[358252345,1744876320675,-1420.11,0.00052328,120]
[358252346,1744876320684,-500.0,0.00052328,120]
[358252347,1744876320695,-541.28,0.00052328,120]
[358252348,1744876320705,-524.96,0.00052328,120]
[358252349,1744876320715,-500.0,0.00052328,120]
[358252350,1744876320726,-591.36438078,0.00052328,120]
[358252351,1744876320735,-776.69,0.00052328,120]
[358252352,1744876320745,-1055.54,0.00052328,120]
[358252353,1744876320755,-304.39182535,0.00052328,120]
[358252354,1744876320765,-1656.3,0.00052328,120]
[358252355,1744876320775,-1158.21,0.00052328,35]
[358252356,1744876320785,-1489.79,0.00052328,120]
[358252357,1744876320795,-500.0,0.00052328,120]
[358252358,1744876320805,-500.0,0.00052328,120]
[358252359,1744876320815,-1223.23,0.00052328,120]
[358252360,1744876320824,-1296.94,0.00052328,120]
[358252361,1744876320834,-606.92,0.00052328,120]
[358252362,1744876320844,-500.0,0.00052328,120]
[358252363,1744876320853,-1176.7,0.00052328,120]
[358252364,1744876320863,-1628.14,0.00052328,120]
[358252365,1744876320873,-1112.64,0.00052328,120]
[358252366,1744876320882,-2221.31,0.00052328,120]
[358252367,1744876320892,-500.0,0.00052328,120]
[358252368,1744876320901,-500.0,0.00052328,120]
[358252369,1744876320911,-500.0,0.00052328,120]
[358252370,1744876320920,-530.74,0.00052328,120]
[358252371,1744876320930,-862.16,0.00052328,120]
[358252372,1744876320940,-1379.41,0.00052328,120]
[358252373,1744876320949,-500.0,0.00052328,120]
[358252374,1744876320959,-507.47,0.00052328,120]
[358252375,1744876320969,-997.54,0.00052328,120]
[358252376,1744876320979,-500.0,0.00052328,120]
[358252377,1744876320989,-1247.38,0.00052328,120]
[358252378,1744876320999,-500.0,0.00052328,120]
[358252379,1744876321010,-519.16,0.00052328,120]
[358252380,1744876321020,-730.71,0.00052328,120]
[358252381,1744876321030,-946.46,0.00052328,120]
[358252382,1744876321040,-500.0,0.00052328,120]
[358252383,1744876321050,-500.0,0.00052328,120]
[358252384,1744876321060,-500.0,0.00052328,120]
[358252385,1744876321070,-1007.48,0.00052328,120]
[358252386,1744876321080,-559.91,0.00052328,120]
[358252387,1744876321090,-1373.68,0.00052328,120]
[358252388,1744876321099,-940.05,0.00052328,120]
[358252389,1744876321110,-500.0,0.00052328,120]
[358252390,1744876321122,-500.0,0.00052328,120]
[358252391,1744876321141,-1203.26,0.00052328,120]
[358252392,1744876321151,-825.67,0.00052328,120]
[358252393,1744876321160,-221.84087647,0.00052328,120]
[358252394,1744876321170,-1575.92,0.00052328,120]
[358252395,1744876321180,-1004.58,0.00052328,120]
[358252396,1744876321190,-1167.01,0.00052328,120]
[358252397,1744876321200,-500.0,0.00052328,120]
[358252398,1744876321211,-701.01,0.00052328,120]
[358252399,1744876321220,-1323.83,0.00052328,120]
[358252400,1744876321231,-803.28,0.00052328,30]
[358252401,1744876321241,-507.89,0.00052328,120]
[358252402,1744876321252,-1748.54,0.00052328,120]
[358252403,1744876321262,-3514.34,0.00052328,120]
[358252404,1744876321272,-511.48035155,0.00052328,120]
[358252405,1744876321282,-500.0,0.00052328,120]
[358252406,1744876321292,-1749.19,0.00052328,120]
[358252407,1744876321302,-1134.15,0.00052328,120]
[358252408,1744876321313,-500.0,0.00052328,120]
[358252409,1744876321324,-1115.45,0.00052328,120]
[358252410,1744876321335,-1157.9,0.00052328,120]
[358252411,1744876321345,-1269.95,0.00052328,120]
[358252412,1744876321355,-1020.0,0.00052328,120]
[358252413,1744876321366,-500.0,0.00052328,120]
[358252414,1744876321377,-500.0,0.00052328,120]
[358252415,1744876321387,-1129.1,0.00052328,120]
[358252416,1744876321397,-568.86,0.00052328,120]
[358252417,1744876321407,-1581.24,0.00052328,120]
[358252418,1744876321416,-766.52,0.00052328,120]
[358252419,1744876321426,-683.59,0.00052328,120]
[358252420,1744876321437,-500.0,0.00052328,120]
[358252421,1744876321446,-500.0,0.00052328,120]
[358252422,1744876321457,-605.07,0.00052328,120]
[358252423,1744876321466,-1943.48,0.00052328,120]
[358252424,1744876321477,-500.0,0.00052328,120]
[358252425,1744876321487,-945.69,0.00052328,120]
[358252426,1744876321497,-1873.76,0.00052328,120]
[358252427,1744876321507,-500.0,0.00052328,120]
[358252428,1744876321518,-500.0,0.00052328,120]
[358252429,1744876321527,-566.9,0.00052328,120]
[358252430,1744876321538,-536.75,0.00052328,120]
[358252431,1744876321548,-500.0,0.00052328,30]
[358252432,1744876321558,-1511.21,0.00052328,120]
[358252433,1744876321568,-2015.84,0.00052328,120]